Cogmind - Beta 16 *** ADVENTURER MODE // 2025.11.13 @ 16:42:26 Player: TheChosenOne Result: Destroyed by H-71 Marshal with Heavy Mass Driver Performance ------------- Evolutions (6) 3000 Regions Visited (13) 2600 Robots Destroyed (149) 745 Value Destroyed (5744) 5744 Prototype IDs (8) 160 Alien Tech Used (0) 0 Bonus (1023) 1023 TOTAL SCORE: 13272 Bonus ------- Follower Combat Kills 1029 Friendly Fire -6 Cogmind --------- Core Integrity 0/1150 Matter 300/300 Energy 82/100 System Corruption 6% Temperature Cool (0) Movement Rolling (80) Location -4/Factory Parts ------- > --- POWER (2) -------- (None) > --- PROPULSION (5) --- Wheel Wheel Antigrav System Combat Gravmag System > --- UTILITY (9) ------ Improved Trap Scanner Terrain Scan Processor Improved Terrain Scan Processor Improved Target Analyzer Hacking Suite > --- WEAPON (3) ------- (None) > --- INVENTORY (5) ---- Linear Gravjet Thermic Laser Wave Gun Advanced Datajack Peak State ------------ > --- POWER ------------ Light Angular Momentum Engine Light Antimatter Reactor > --- PROPULSION ------- Carbon-fiber Leg Carbon-fiber Leg Titanium Leg Myomer Leg Myomer Leg > --- UTILITY ---------- Coolant Injector Large Storage Unit Enhanced Optical Array Advanced Sensor Array Terrain Scan Processor Improved Target Analyzer Transmission Jammer > --- WEAPON ----------- Hypervelocity Gauss Rifle Heavy Flak Cannon Advanced Concussive RPG > --- INVENTORY -------- Fission Core Light Fission Core Titanium Leg Advanced Heat Sink Compact Battery High-capacity Matter Pod Improved Reaction Control System Improved Medium Armor Plating Layered Medium Armor Plating Reactive Plating EM Shield Hypervelocity Gauss Rifle Advanced Assault Cannon Advanced Concussive RPG Power Sword [Rating: 84] Favorites ----------- Power Light Angular Momentum Engine Engine Light Angular Momentum Engine Power Core Light Fission Core Reactor Light Antimatter Reactor Propulsion Carbon-fiber Leg Treads Advanced Treads Leg Carbon-fiber Leg Wheel Wheel Hover Unit Antigrav System Flight Unit Cesium-ion Thruster Utility Large Storage Unit Device Transmission Jammer Storage Large Storage Unit Processor Terrain Scan Processor Hackware Hacking Suite Protection Improved Medium Armor Plating Weapon Flak Gun Energy Gun Backup Laser III Energy Cannon Proton Cannon Ballistic Gun Flak Gun Ballistic Cannon Heavy Flak Cannon Launcher Advanced Concussive RPG Special Weapon Remote Datajack Slashing Weapon Chainsword Special Melee Weapon Improved Datajack Build | -11 -10 -9 -8 -7 -7 -7 -7 -6 -6 -5 -5 -5 -4 ------- Run | Yrd Mat Mat Mat Fac Was Fac Sto Fac Ext Fac Was Fac Fac Slots Evolved 12 | . . 2 2 2 . . . 2 . 2 . . 2 Power 1 | . . . . 1 . . . . . . . . . Propulsion 3 | . . 1 . . . . . 1 . 1 . . . Utility 7 | . . 1 1 1 . . . 1 . 1 . . 2 Weapon 1 | . . . 1 . . . . . . . . . . Parts Attached 210 | 7 3 13 10 13 10 11 19 24 8 41 1 17 33 Power 31 | 1 . 4 1 3 1 2 2 5 2 5 . 2 3 Engine 19 | 1 . 4 1 2 . 1 2 1 1 4 . 1 1 Core 11 | . . . . 1 1 1 . 4 . 1 . 1 2 Reactor 1 | . . . . . . . . . 1 . . . . Propulsion 70 | 2 . 5 3 4 5 . 10 3 4 16 1 5 12 Treads 4 | . . . . 3 . . . . . . . 1 . Leg 34 | . . 4 3 1 . . 9 3 4 10 . . . Wheel 13 | 2 . 1 . . 1 . 1 . . 1 . 4 3 Hover 14 | . . . . . . . . . . 5 . . 9 Flight 5 | . . . . . 4 . . . . . 1 . . Utility 64 | 2 1 3 3 5 2 4 4 10 1 9 . 9 11 Device 30 | 1 . . 1 3 . 2 4 4 1 3 . 7 4 Storage 9 | 1 1 1 1 1 1 1 . 1 . . . 1 . Processor 16 | . . 1 1 1 . . . 5 . 2 . 1 5 Hackware 2 | . . . . . 1 . . . . . . . 1 Protection 7 | . . 1 . . . 1 . . . 4 . . 1 Artifact . | . . . . . . . . . . . . . . Weapon 45 | 2 2 1 3 1 2 5 3 6 1 11 . 1 7 Energy Gun 15 | 1 1 . . . 2 2 . 1 . 7 . . 1 Energy Cannon 2 | . . . . 1 . . . 1 . . . . . Ballistic Gun 14 | 1 1 1 3 . . 2 2 2 . . . 1 1 Ballistic Cannon 3 | . . . . . . . . 2 . 1 . . . Launcher 3 | . . . . . . . . . . 3 . . . Special Weapon 1 | . . . . . . . 1 . . . . . . Impact Weapon . | . . . . . . . . . . . . . . Slashing Weapon 6 | . . . . . . . . . 1 . . . 5 Piercing Weapon . | . . . . . . . . . . . . . . Special Melee Weapon 1 | . . . . . . 1 . . . . . . . Unidentified Prototypes 2 | . . . . . . . . 1 . . . . 1 Parts Lost 100 | . . 4 5 . 8 3 5 2 1 40 3 . 29 Power 15 | . . . 1 . . . 1 . 1 7 . . 5 Propulsion 40 | . . 3 1 . 3 1 2 1 . 17 2 . 10 Utility 25 | . . . 2 . 3 2 2 . . 7 1 . 8 Weapon 20 | . . 1 1 . 2 . . 1 . 9 . . 6 Highest Loss Streak 9 | . . 3 3 . 6 2 2 1 1 9 3 . 9 To Critical Strikes . | . . . . . . . . . . . . . . Average Backups 10 | 1 7 9 12 14 8 5 9 11 14 11 8 4 5 Power 1 | . 1 1 1 1 1 . 1 . 1 . . . . Propulsion 1 | . 2 2 3 3 1 1 1 1 2 . 1 . . Utility 4 | . 2 3 2 4 3 2 4 6 8 6 3 2 1 Weapon 2 | . 1 2 3 4 1 . 1 2 3 2 3 1 2 Tool/Special . | . . . . . . . . . . . . . . Unused Backups 33 | . . 2 1 9 5 2 . 1 2 3 3 1 4 Power . | . . . . . . . . . . . . . . Propulsion 7 | . . 1 1 . . . . . . 3 1 1 . Utility 13 | . . 1 . 3 2 2 . . 2 . 2 . 1 Weapon 11 | . . . . 6 3 . . 1 . . . . 1 Tool/Special 2 | . . . . . . . . . . . . . 2 Average Slot Usage (%) 88 | . 96 98 99 97 61 94 95 99 99 84 42 55 58 Engine 6 | . 13 11 8 13 4 6 11 2 . 4 7 4 2 Core 3 | . . . . . 5 7 2 9 8 3 . 1 3 Leg 17 | . . 19 26 19 . . 18 25 26 18 6 . . Wheel 2 | . 28 12 . . 1 . . . . 1 2 5 5 Hover 1 | . . . . . . . . . . 2 2 . 7 Flight 1 | . . . . . 10 21 2 . . . 2 4 . Device 15 | . 13 9 8 17 9 19 20 20 13 12 3 21 13 Storage 6 | . 14 11 11 7 2 6 8 6 6 5 3 4 1 Processor 9 | . . 10 10 11 2 . . 10 20 14 7 1 8 Protection 2 | . . 1 4 . 2 7 4 . . 3 1 . 1 Energy Gun 2 | . 12 11 4 . 6 8 2 . . 1 1 . . Energy Cannon 1 | . . . . 4 2 . . 3 . . . . . Ballistic Gun 10 | . 12 11 22 16 5 6 15 11 13 3 . 3 2 Ballistic Cannon 1 | . . . . . . . . 3 5 4 . . . Peak Build Rating 84 | 9 9 17 31 44 44 47 47 62 72 84 65 55 84 Average Rating 46 | 5 8 13 25 39 28 43 43 57 65 67 33 45 46 On Entrance 34 | . 9 9 17 28 44 33 36 46 62 72 65 20 43 Avg Prop Armor Cover (%) 10 | . . 6 . . 15 . 8 4 . 11 6 14 4 Naked Turns 67 | . . . . . 32 . . . . . 1 . 34 Heaviest Build 71 | 12 17 33 37 53 53 36 53 61 61 71 50 51 59 Greatest Support 97 | 20 20 36 43 66 66 28 61 78 82 97 54 61 61 Greatest Overweight (x) 4 | . 2 1 1 2 3 1 2 1 . 3 . 1 4 Average Overweight (x) . | . . . . . . . . . . . . . . Largest Inventory Capacity 15 | 8 10 15 15 15 15 10 10 15 15 15 15 10 10 Average Capacity 11 | 7 8 10 15 15 8 7 10 12 15 15 8 5 6 Most Carried 15 | 5 8 12 15 15 15 7 10 15 15 15 14 8 10 Average Carried 10 | 1 7 9 12 14 7 5 9 11 14 11 8 4 5 Final Capacity 15 | 8 10 15 15 15 5 10 10 15 15 15 5 10 5 Final Carried 15 | 5 8 12 14 15 5 7 10 15 15 14 5 8 4 Class Distribution -------------------- 20% | Scavenger-Gunner 19% | Scavenger-Mutant 17% | Mutant 16% | Scavenger-Skirmisher 8% | Scavenger-Tank 3% | Tank Dominant Class ---------------- Mutant | -10/Materials Scavenger-Mutant | -9/Materials Scavenger-Gunner | -8/Materials Scavenger-Gunner | -7/Factory Sprinter | -7/Waste Mutant | -7/Factory Scavenger-Tank | -7/Storage Scavenger-Gunner | -6/Factory Scavenger-Skirmisher | -6/Extension Scavenger-Mutant | -5/Factory Mutant | -5/Waste Mutant | -5/Factory Scavenger-Mutant | -4/Factory Resources | -11 -10 -9 -8 -7 -7 -7 -7 -6 -6 -5 -5 -5 -4 ----------- Run | Yrd Mat Mat Mat Fac Was Fac Sto Fac Ext Fac Was Fac Fac Matter Collected 5959 | 275 16 485 392 275 201 125 801 687 771 1169 . 431 331 Remotely . | . . . . . . . . . . . . . . Salvage Created 6728 | 90 31 544 496 315 . 116 827 870 876 1794 . 431 338 Parts 382 | 5 4 34 39 20 . 6 42 43 42 102 . 21 24 Haulers Intercepted 3 | . . . . . . . 2 1 . . . . . Recyclers Shooed 7 | 1 . . . . . . 1 2 1 . . 2 . Parts Field Recycled 4 | . . . . . . . . . . . . 4 . Retrieved Matter 30 | . . . . . . . . . . . . 30 . Parts Self-Destructed . | . . . . . . . . . . . . . . Prevented . | . . . . . . . . . . . . . . Parts Restored . | . . . . . . . . . . . . . . Kills | -11 -10 -9 -8 -7 -7 -7 -7 -6 -6 -5 -5 -5 -4 ------- Run | Yrd Mat Mat Mat Fac Was Fac Sto Fac Ext Fac Was Fac Fac Combat Hostiles Destroyed 112 | . 2 13 10 4 . 3 16 15 12 34 . . 3 Melee 11 | . . . . . . . . . . 8 . . 3 Guns 66 | . 2 13 10 3 . 3 16 5 7 7 . . . Cannons 31 | . . . . . . . . 10 5 16 . . . AOE 3 | . . . . . . . . . . 3 . . . Classes Destroyed 15 | 2 1 3 4 . . . 2 . 1 1 . . 1 Worker 7 | . . . 1 . . . 1 2 . 2 . 1 . Builder 11 | . . . 1 . . . 2 2 . 2 . 3 1 Tunneler 4 | 1 . . . . . . . 1 . 1 . . 1 Hauler 3 | . . . . . . . 2 1 . . . . . Recycler 6 | 1 . . . 1 . . . . . . . 3 1 Watcher 2 | . . . 1 . . . . . . 1 . . . Swarmer 14 | . 2 2 3 . . . . . . 7 . . . Grunt 49 | . . 7 3 2 . 2 10 6 3 16 . . . Brawler 1 | . . . . . . . . . . 1 . . . Duelist 9 | . . 2 . 1 . . . 2 3 1 . . . Sentry 16 | . . 2 2 1 . 1 3 2 5 . . . . Hunter 7 | . . . 2 . . . 1 1 . 3 . . . Programmer 14 | . . . . . . . 2 4 . 6 . . 2 Heavy 1 | . . . . . . . . . . . . . 1 Behemoth 1 | . . . . . . . . . 1 . . . . Thug 2 | . . . . . . . . . 1 1 . . . Butcher 1 | . . . . . . . . . . 1 . . . Guerrilla 1 | . . . . . . . . . . 1 . . . Best Kill Streak 5 | 2 2 3 2 4 . 2 4 4 3 5 . 3 1 Combat Bots Only 5 | . 2 3 2 3 . 2 4 3 3 5 . . 1 Max Kills in Single Turn 3 | 1 1 1 1 1 . 1 1 1 1 3 . 1 1 Gunslinging . | . . . . . . . . . . . . . . Exploded 2 | . . . . . . . . . . 2 . . . Melee 1 | . . . . . . . . . . 1 . . 1 Uniques/NPCs Destroyed . | . . . . . . . . . . . . . . Combat | -11 -10 -9 -8 -7 -7 -7 -7 -6 -6 -5 -5 -5 -4 -------- Run | Yrd Mat Mat Mat Fac Was Fac Sto Fac Ext Fac Was Fac Fac Hostile Shots Fired 1261 | . 21 68 69 57 7 53 230 87 87 301 3 5 273 Missed 477 | . 8 21 26 32 1 21 86 44 43 80 1 2 112 Hits 784 | . 13 47 43 25 6 32 144 43 44 221 2 3 161 Melee 29 | . . 9 . . 6 . . . 4 8 2 . . Projectile 755 | . 13 38 43 25 . 32 144 43 40 213 . 3 161 AOE 6 | . . . . . . . . . . 1 . . 5 Critical Strikes 29 | . . 2 2 . 3 1 1 4 2 8 1 . 5 Part Disruptions 2 | . . . . . . . . 1 . 1 . . . Damage Taken 11333 | . 72 575 569 219 260 370 1058 677 545 3778 74 58 3078 Core 2011 | . 18 137 33 13 195 60 90 64 4 215 14 . 1168 Absorbed by Shields 74 | . . . . . . . 40 . 34 . . . . Redirected to Shielding 52 | . . 14 38 . . . . . . . . . . Ignored by Resistances 3342 | . 26 160 160 69 70 109 347 204 169 1143 20 12 853 Regen/Repaired (Parts) 108 | . . 70 . . 18 12 8 . . . . . . Core Remaining (%) 81 | 100 92 65 94 . . . 48 . 92 . . 77 . Volleys Fired 338 | 5 7 47 33 15 2 12 42 36 31 86 . 22 . Largest 3 | 2 2 2 3 3 3 3 3 3 3 3 . 1 . Hottest 190 | 60 70 70 88 111 111 108 96 147 141 190 . 33 . Shots Fired 814 | 10 14 94 98 45 6 29 109 107 94 185 . 23 . Gun 619 | 10 14 94 98 39 4 29 109 52 64 83 . 23 . Cannon 190 | . . . . 6 2 . . 55 30 97 . . . Launcher 5 | . . . . . . . . . . 5 . . . Special . | . . . . . . . . . . . . . . Kinetic 609 | 5 7 47 86 39 4 14 95 81 90 118 . 23 . Thermal 96 | . 7 41 . . . 15 14 . . 19 . . . Explosive 2 | . . . . . . . . . . 2 . . . Electromagnetic 107 | 5 . 6 12 6 2 . . 26 4 46 . . . Robot Hit Streak 25 | 8 20 25 14 21 18 19 20 23 14 20 . 15 . Robot Miss Streak 5 | . . 1 3 2 1 3 5 4 3 4 . 1 . Penetration Max 1 | . . . . . . . 1 . 1 1 . 1 . Secondary Targets 7 | . . . . 1 . . 5 . . 1 . . . Max Gunslinging Chain 1 | . . . . 1 . . 1 . . 1 . . . Shots Hit Robots 682 | 8 12 77 70 39 5 23 90 76 71 160 . 19 32 Core Hits 454 | 3 2 28 27 13 . 25 104 76 46 109 . 9 12 Critical Kills 12 | . . . . . . . . 2 6 1 . 3 . Critical Parts Destroyed 25 | . . 1 . . . . . 2 13 7 . 2 . Critical Strikes 62 | . . 1 . . . . 1 9 20 20 . 5 6 Destroy 39 | . . 1 . . . . 1 4 20 8 . 5 . Blast 6 | . . . . . . . . 3 . 3 . . . Corrupt 4 | . . . . . . . . 2 . 2 . . . Sever 13 | . . . . . . . . . . 7 . . 6 Melee Attacks 72 | . . . . . . 1 3 . 5 29 . . 34 Impact . | . . . . . . . . . . . . . . Slashing 68 | . . . . . . . . . 5 29 . . 34 Piercing . | . . . . . . . . . . . . . . Sneak Attacks 9 | . . . . . . 1 3 . 1 . . . 4 Combat Hostiles . | . . . . . . . . . . . . . . Follow-up Attacks 8 | . . . . . . . . . . . . . 8 Damage Inflicted 14848 | 94 129 825 988 639 50 420 1927 1984 1196 4954 . 602 1040 Guns 7681 | 94 129 825 977 527 46 420 1919 766 351 1054 . 573 . Cannons 3828 | . . . . 112 4 . . 1010 739 1963 . . . Explosions 1091 | . . . . . . . . 181 . 910 . . . Melee 2091 | . . . . . . . . . 95 981 . . 1015 Ramming 157 | . . . 11 . . . 8 27 11 46 . 29 25 Kinetic 8670 | 27 42 283 832 527 46 305 1764 1250 1027 1994 . 573 . Thermal 1296 | . 87 459 . . . 115 155 181 . 299 . . . Explosive 612 | . . . . . . . . . . 612 . . . Electromagnetic 1975 | 67 . 83 145 112 4 . . 526 63 975 . . . Impact 47 | . . . . . . . . . . 47 . . . Slashing 2091 | . . . . . . . . . 95 981 . . 1015 Piercing . | . . . . . . . . . . . . . . Highest Corruption 16 | . 1 . . . . . . 1 1 12 16 16 6 Average Corruption 5 | . 1 . . . . . . 1 1 5 15 16 5 Corruption Purged . | . . . . . . . . . . . . . . Corruption Blocked . | . . . . . . . . . . . . . . Effects 113 | . 3 . . . . . . 1 8 53 8 30 10 Message Errors 27 | . . . . . . . . . 2 13 . 10 2 Matter Fused 31 | . 1 . . . . . . 1 2 13 2 11 1 Heat Flow Errors 11 | . 1 . . . . . . . . 5 1 1 3 Energy Discharges 12 | . . . . . . . . . . 9 1 . 2 Parts Fused 1 | . . . . . . . . . . 1 . . . Data Loss (minor) 13 | . 1 . . . . . . . . 5 2 3 2 Misfires 4 | . . . . . . . . . 2 . . 2 . Alerts 3 | . . . . . . . . . 1 1 . 1 . Misdirections 4 | . . . . . . . . . . 1 2 1 . Weapon Failures 7 | . . . . . . . . . 1 5 . 1 . Overload Shots . | . . . . . . . . . . . . . . Overflow Damage 229 | . . . . . . . . 35 41 70 . . 83 Projectiles 20 | . . . . . . . . . . 20 . . . Explosions 43 | . . . . . . . . 35 . 8 . . . Melee 166 | . . . . . . . . . 41 42 . . 83 Knockbacks 58 | . . . . . . . . 9 13 34 . 2 . Impact 3 | . . . . . . . . 1 . . . 2 . Kinetic 49 | . . . . . . . . 7 13 29 . . . Secondary 6 | . . . . . . . . 1 . 5 . . . Self-Inflicted Damage 289 | . . . . . . . . 112 . 152 . 14 11 Shots 4 | . . . . . . . . 2 . 2 . . . Rammed 7 | . . . . . . . . . . . . 3 4 Targets Rammed 19 | . . . 3 . . . 1 3 1 4 . 3 4 Kicked 12 | . . . 3 . . . 1 3 1 4 . . . Crushed . | . . . . . . . . . . . . . . Highest Temperature 338 | 40 171 81 36 8 . 248 81 189 204 338 74 218 235 Average Temperature 76 | 19 64 32 14 5 . 91 16 68 90 105 45 105 100 Received Heat Transfer 2748 | . . 198 171 84 . 210 383 198 142 807 . 27 528 Effects 1 | . . . . . . . . . . 1 . . . Shutdowns 1 | . . . . . . . . . . 1 . . . Siege Activations . | . . . . . . . . . . . . . . Martial Activations . | . . . . . . . . . . . . . . Shielding Activations . | . . . . . . . . . . . . . . Robots Disrupted . | . . . . . . . . . . . . . . Combat Hostiles . | . . . . . . . . . . . . . . Robots Corrupted 1 | . . . . 1 . . . . . . . . . Combat Hostiles 1 | . . . . 1 . . . . . . . . . Parts Fried 6 | . . . . . . . . 3 1 2 . . . Impact Corruptions . | . . . . . . . . . . . . . . Robots Melted . | . . . . . . . . . . . . . . Combat Hostiles . | . . . . . . . . . . . . . . Parts Melted 5 | . 1 3 . . . 1 . . . . . . . Heat Transferred 3110 | . 259 1369 . . . 333 444 150 . 555 . . . Parts Sabotaged . | . . . . . . . . . . . . . . Parts Stolen . | . . . . . . . . . . . . . . Parts Stripped . | . . . . . . . . . . . . . . Power Chain Reactions 1 | . . . . . . . . 1 . . . . . Alert | -11 -10 -9 -8 -7 -7 -7 -7 -6 -6 -5 -5 -5 -4 ------- Run | Yrd Mat Mat Mat Fac Was Fac Sto Fac Ext Fac Was Fac Fac Maximum Alert Level 1 | . . . . . . . . . . 1 . . . Low Security (%) 99 | 100 100 100 100 100 100 100 100 100 100 99 100 100 100 Level 1 . | . . . . . . . . . . . . . . Level 2 . | . . . . . . . . . . . . . . Level 3 . | . . . . . . . . . . . . . . Level 4 . | . . . . . . . . . . . . . . Level 5 . | . . . . . . . . . . . . . . High Security . | . . . . . . . . . . . . . . Max Security . | . . . . . . . . . . . . . . Peak Influence 206 | 5 40 65 57 61 11 105 193 118 140 206 12 14 90 Initial 46 | . 2 . . 7 . . 22 46 32 44 12 . . Average 29 | 1 11 22 12 5 . 44 61 22 41 55 2 . 16 Influence Increases 4648 | 10 55 374 310 109 32 238 870 566 531 1182 . 41 330 Destroy 0b10 Robot/C 2680 | . 40 260 200 80 . 100 540 300 380 720 . . 60 Destroy 0b10 Robot/NC 205 | 10 . . 15 5 . 20 25 30 10 40 . 35 15 Destroy Leader 660 | . 10 60 62 20 . 22 154 92 34 176 . . 30 Allied During Kill 170 | . . . . . . 11 70 . 74 15 . . . Successful Hack 120 | . 5 9 15 3 . . 20 42 12 14 . . . Disable Machine 108 | . . . . . . 9 . 45 . 54 . . . Destroy Structure 300 | . . . 3 1 32 61 1 42 6 148 . 6 . Lose Combat Pursuer 405 | . . 45 15 . . 15 60 15 15 15 . . 225 Influence Decreases 4648 | 5 60 374 290 129 32 180 807 609 503 1244 44 41 330 Entered New Map 267 | . 3 . . 13 . . 36 75 46 62 32 . . Time Decay 3424 | 5 57 344 247 116 10 90 542 524 331 832 10 41 275 Lost Part 564 | . . 30 22 . 10 30 50 10 10 350 2 . 50 Lost Ally 314 | . . . . . 12 60 179 . 58 . . . 5 Purge Threat 79 | . . . 21 . . . . . 58 . . . . Squads Dispatched 49 | . . 2 2 3 . 1 11 5 4 15 . 1 5 Investigation 9 | . . . 1 . . . 3 2 1 2 . . . Extermination 14 | . . . . 2 . . 3 3 . 4 . 1 1 Reinforcement 17 | . . 2 1 1 . 1 2 . 3 3 . . 4 Assault . | . . . . . . . . . . . . . . Garrison 9 | . . . . . . . 3 . . 6 . . . Intercept . | . . . . . . . . . . . . . . Searches Triggered . | . . . . . . . . . . . . . . Construction Impeded 5 | . . . . . . . . . 2 3 . . . Haulers Reinforced . | . . . . . . . . . . . . . . Active Scanning Responses . | . . . . . . . . . . . . . . Cargo Convoy Interrupts . | . . . . . . . . . . . . . . Stealth | -11 -10 -9 -8 -7 -7 -7 -7 -6 -6 -5 -5 -5 -4 --------- Run | Yrd Mat Mat Mat Fac Was Fac Sto Fac Ext Fac Was Fac Fac Distress Signals 13 | . . 1 2 . . 2 4 1 2 1 . . . Communications Jammed 6 | . . . . . . . 3 2 . 1 . . . Distress Signals 5 | . . . . . . . 2 2 . 1 . . . Times Spotted 234 | . 5 19 23 6 7 13 31 21 24 42 6 4 33 Peak Tracking Total 7 | . 3 4 6 3 6 6 4 3 6 4 6 4 7 Tactical Retreats 16 | . . 1 1 . 1 1 3 1 1 1 . . 6 ECM-based Alert Blocks 2 | . . . . . . . 2 . . . . . . Traps | -11 -10 -9 -8 -7 -7 -7 -7 -6 -6 -5 -5 -5 -4 ------- Run | Yrd Mat Mat Mat Fac Was Fac Sto Fac Ext Fac Was Fac Fac Traps Triggered 14 | . 3 . 1 2 . . 1 1 1 5 . . . Indirectly . | . . . . . . . . . . . . . . Trap Hack Attempts 1 | . . . . . . . 1 . . . . . . Triggered . | . . . . . . . . . . . . . . Disarmed 4 | . . . . . . . 4 . . . . . . Reprogrammed . | . . . . . . . . . . . . . . Reused . | . . . . . . . . . . . . . . Traps Extracted . | . . . . . . . . . . . . . . Installed . | . . . . . . . . . . . . . . Triggered . | . . . . . . . . . . . . . . Machines | -11 -10 -9 -8 -7 -7 -7 -7 -6 -6 -5 -5 -5 -4 ---------- Run | Yrd Mat Mat Mat Fac Was Fac Sto Fac Ext Fac Was Fac Fac Machines Disabled 12 | . . . . . . 1 . 5 . 6 . . . Max in Single Turn 5 | . . . . . . . . 5 . 2 . . . Machines Repaired . | . . . . . . . . . . . . . . Machines Dismantled . | . . . . . . . . . . . . . . Machines Sabotaged . | . . . . . . . . . . . . . . Overloaded Fab Kills . | . . . . . . . . . . . . . . Hacking | -11 -10 -9 -8 -7 -7 -7 -7 -6 -6 -5 -5 -5 -4 --------- Run | Yrd Mat Mat Mat Fac Was Fac Sto Fac Ext Fac Was Fac Fac Machines Accessed 45 | . 4 5 4 4 . 2 6 7 6 3 . 2 2 Terminals 30 | . 4 2 3 2 . 1 5 5 6 1 . . 1 Fabricators 4 | . . . . 2 . . . 1 . 1 . . . Repair Stations 1 | . . 1 . . . . . . . . . . . Recycling Units 6 | . . 2 1 . . . . 1 . . . 1 1 Scanalyzers 3 | . . . . . . 1 . . . 1 . 1 . Garrison Access 1 | . . . . . . . 1 . . . . . . Total Hacks 121 | . 9 17 9 6 . 4 18 23 21 7 . 4 3 Successful 61 | . 4 13 5 3 . 2 8 12 6 5 . 1 2 Failed 60 | . 5 4 4 3 . 2 10 11 15 2 . 3 1 Catastrophic 5 | . 1 . . . . . 3 1 . . . . . Database Lockouts . | . . . . . . . . . . . . . . Manual 20 | . 4 1 1 . . . 5 7 2 . . . . Terminals 88 | . 9 7 7 4 . 2 14 19 21 3 . . 2 Fabricators 6 | . . . . 2 . . . 2 . 2 . . . Repair Stations 4 | . . 4 . . . . . . . . . . . Recycling Units 12 | . . 6 2 . . . . 2 . . . 1 1 Scanalyzers 7 | . . . . . . 2 . . . 2 . 3 . Garrison Access 4 | . . . . . . . 4 . . . . . . Terminal Hacks 44 | . 4 5 5 1 . 1 8 11 6 2 . . 1 Record 8 | . . 2 2 . . . 1 3 . . . . . Robot Analysis 1 | . . . . . . . . 1 . . . . . Prototype ID Bank 3 | . 1 1 . . . . . 1 . . . . . Open Door 5 | . . . . . . . 1 1 3 . . . . Open DSF 1 | . . . . . . . . . . . . . 1 Branch Access Points 1 | . . . . . . . . . 1 . . . . Emergency Access Points 2 | . . . 2 . . . . . . . . . . Alert Level 3 | . 1 . . . . 1 . 1 . . . . . Unreport Threat 2 | . . . 1 . . . . . 1 . . . . Locate Traps 1 | . 1 . . . . . . . . . . . . Disarm Traps 2 | . . . . . . . 2 . . . . . . Dispatch Records 2 | . . 1 . . . . . 1 . . . . . Surveillance Status 1 | . . 1 . . . . . . . . . . . Investigation Status 3 | . . . . . . . 2 . . 1 . . . Recall Investigation 1 | . . . . . . . 1 . . . . . . Recall Extermination 1 | . . . . 1 . . . . . . . . . Hauler Manifests 2 | . . . . . . . 1 . 1 . . . . Zone Layout 5 | . 1 . . . . . . 3 . 1 . . . Fabricator Hacks 5 | . . . . 2 . . . 1 . 2 . . . Network Status 3 | . . . . 1 . . . 1 . 1 . . . Build 2 | . . . . 1 . . . . . 1 . . . Repair Station Hacks 2 | . . 2 . . . . . . . . . . . Scan Component 1 | . . 1 . . . . . . . . . . . Repair 1 | . . 1 . . . . . . . . . . . Recycling Unit Hacks 8 | . . 6 . . . . . . . . . 1 1 Recycle Component 1 | . . 1 . . . . . . . . . . . Report Inventory 3 | . . 3 . . . . . . . . . . . Retrieve Matter 1 | . . . . . . . . . . . . 1 . Retrieve Components 3 | . . 2 . . . . . . . . . . 1 Scanalyzer 2 | . . . . . . 1 . . . 1 . . . Retrieve Study 2 | . . . . . . 1 . . . 1 . . . Garrison Access Hacks . | . . . . . . . . . . . . . . Unauthorized Hacks . | . . . . . . . . . . . . . . Terminals . | . . . . . . . . . . . . . . Fabricators . | . . . . . . . . . . . . . . Repair Stations . | . . . . . . . . . . . . . . Recycling Units . | . . . . . . . . . . . . . . Scanalyzers . | . . . . . . . . . . . . . . Garrison Access . | . . . . . . . . . . . . . . Data Cores Recovered . | . . . . . . . . . . . . . . Used . | . . . . . . . . . . . . . . Hacking Detections 36 | . 4 2 3 3 . 2 5 6 5 3 . 2 1 Full Trace Events 6 | . . . 1 . . . 2 2 . 1 . . . Feedback Events . | . . . . . . . . . . . . . . Feedback Blocked . | . . . . . . . . . . . . . . Robot Schematics Acquired . | . . . . . . . . . . . . . . Robots Built . | . . . . . . . . . . . . . . Authchips . | . . . . . . . . . . . . . . Time . | . . . . . . . . . . . . . . Total Robot Build Rating . | . . . . . . . . . . . . . . Part Schematics Acquired . | . . . . . . . . . . . . . . Parts Built 5 | . . . . 2 . . . . . 3 . . . Authchips . | . . . . . . . . . . . . . . Time 201 | . . . . 84 . . . . . 117 . . . Total Part Build Rating 29 | . . . . 8 . . . . . 21 . . . Part Studies Acquired 2 | . . . . . . 1 . . . 1 . . . Parts Repaired 1 | . . 1 . . . . . . . . . . . Time 32 | . . 32 . . . . . . . . . . . Parts Recycled 1 | . . 1 . . . . . . . . . . . Recycled Matter . | . . . . . . . . . . . . . . Retrieved Matter . | . . . . . . . . . . . . . . Retrieved Components 11 | . . 2 . . . . . . . . . . 9 Parts Scanalyzed . | . . . . . . . . . . . . . . Part Schematics Acquired . | . . . . . . . . . . . . . . Parts Damaged . | . . . . . . . . . . . . . . Bothacking | -11 -10 -9 -8 -7 -7 -7 -7 -6 -6 -5 -5 -5 -4 ------------ Run | Yrd Mat Mat Mat Fac Was Fac Sto Fac Ext Fac Was Fac Fac Used RIF Installer . | . . . . . . . . . . . . . . Robots Hacked 1 | . . . . . . . 1 . . . . . . Non-combat 1 | . . . . . . . 1 . . . . . . Combat . | . . . . . . . . . . . . . . Robot Hacks Applied 1 | . . . . . . . 1 . . . . . . parse_system 1 | . . . . . . . 1 . . . . . . Relay Couplers Released . | . . . . . . . . . . . . . . Fabnet Peak Effective % . | . . . . . . . . . . . . . . Robots Rewired 8 | . . . . . . . . . 8 . . . . Allies Hacked . | . . . . . . . . . . . . . . Hacks Repelled . | . . . . . . . . . . . . . . Allies | -11 -10 -9 -8 -7 -7 -7 -7 -6 -6 -5 -5 -5 -4 -------- Run | Yrd Mat Mat Mat Fac Was Fac Sto Fac Ext Fac Was Fac Fac Total Allies 39 | . . . . . 19 . 10 . 10 . . . . Largest Group 19 | . . . . . 19 4 10 . 10 6 . . . Highest-Rated Group 465 | . . . . . 465 127 173 . 439 305 . . . Highest-Rated Ally 159 | . . . . . 35 35 29 . 159 159 . . . Total Orders 3 | . . . . . . . . . . 1 . . 2 ROAM 2 | . . . . . . . . . . . . . 2 FOLLOW 1 | . . . . . . . . . . 1 . . . Ally Attacks 418 | . . . . . 174 16 113 . 90 25 . . . Total Damage 10907 | . . . . . 6650 752 1460 . 1716 329 . . . Kills 48 | . . . . . 18 6 11 . 9 4 . . . Allies Corrupted 1 | . . . . . . . . . 1 . . . . Allies Melted 2 | . . . . . . . . 1 1 . . . . Intel | -11 -10 -9 -8 -7 -7 -7 -7 -6 -6 -5 -5 -5 -4 ------- Run | Yrd Mat Mat Mat Fac Was Fac Sto Fac Ext Fac Was Fac Fac Active Infowar (turns) 8772 | 19 198 712 343 593 123 . 635 1701 861 2227 36 634 690 Optics 3294 | . . . . . . . . 170 861 2227 36 . . Sensors 3572 | . . . . . . . . 1380 514 1678 . . . IFF 697 | . . . . . . . . . . . . 458 239 Terrain 1682 | 19 198 712 343 . . . . . . . . 190 220 Traps 1324 | . . . . . . . . . . . . 634 690 Machine Analysis 582 | . . . . . . . . 582 . . . . . Jamming 3331 | . . . . 526 123 . 173 1601 108 800 . . . ECM 672 | . . . . 99 69 . 504 . . . . . . Robot Analysis Total 1 | . . . . . . . . 1 . . . . . Derelict Logs Recovered . | . . . . . . . . . . . . . . Drone Launches 4 | . . . . . . . . . . . . . 4 Drone Recoveries 1 | . . . . . . . . . . . . . 1 Exploration | -11 -10 -9 -8 -7 -7 -7 -7 -6 -6 -5 -5 -5 -4 ------------- Run | Yrd Mat Mat Mat Fac Was Fac Sto Fac Ext Fac Was Fac Fac Turns Passed 11882 | 96 213 815 1016 1183 371 280 1292 1850 861 2227 102 638 938 Spaces Moved 8803 | 85 214 553 649 654 707 405 740 1232 520 1337 176 535 996 Core 275 | 5 2 . . . 64 . . . . . 1 . 203 Treads 190 | . . . . 97 29 . . . . . . 64 . Legs 4778 | . . 312 649 557 1 . 525 1232 520 952 30 . . Wheels 1453 | 80 212 241 . . 45 . 37 . . 256 . 197 385 Hover 424 | . . . . . . . . . . 129 . . 295 Flight 1683 | . . . . . 568 405 178 . . . 145 274 113 Fastest Speed 28 | 50 80 80 120 120 30 30 110 125 122 58 40 40 28 Average Speed 108 | 78 80 103 131 155 46 50 141 126 124 125 53 98 78 Slowest Speed 330 | 80 150 190 190 305 225 114 195 196 125 330 120 250 205 Overloaded Moves . | . . . . . . . . . . . . . . Propulsion Burnouts . | . . . . . . . . . . . . . . Robots Hopped . | . . . . . . . . . . . . . . Potential Cave-ins 1 | . . . . . 1 . . . . . . . . Cave-ins Triggered 1 | . . . . . . . . . . 1 . . . Exploration Rate (%) 37 | 4 34 34 43 13 96 11 71 27 51 17 99 8 19 Regions Visited 13 Branch Regions 2 Pre-discovered Areas . | . . . . . . . . . . . . . . Known Exits Taken . | . . . . . . . . . . . . . . Unknown Exits Taken 9 | 1 1 1 1 . . 1 1 1 1 . . 1 . Scrap Searched . | . . . . . . . . . . . . . . Spaces Dug 1 | . . . . . . . . . . 1 . . . Terrain Destroyed 141 | . . . . . . . 1 49 . 87 . 4 . Melee 1 | . . . . . . . . . . 1 . . . Projectile 14 | . . . . . . . 1 3 . 6 . 4 . AOE 126 | . . . . . . . . 46 . 80 . . . Terrain Rammed . | . . . . . . . . . . . . . . Walls Destroyed . | . . . . . . . . . . . . . . Machines Disabled . | . . . . . . . . . . . . . . Actions | -11 -10 -9 -8 -7 -7 -7 -7 -6 -6 -5 -5 -5 -4 --------- Run | Yrd Mat Mat Mat Fac Was Fac Sto Fac Ext Fac Was Fac Fac Total 10338 | 101 239 710 738 795 742 452 890 1434 658 1677 182 623 1097 Wait 569 | . 6 73 31 71 17 6 55 100 43 125 1 29 12 Move 8792 | 84 213 552 648 654 706 404 739 1231 519 1337 175 534 996 Hop . | . . . . . . . . . . . . . . Pick Up 100 | 5 4 7 7 12 . 5 8 11 3 24 3 1 10 Fast Attach 123 | 7 5 5 1 8 9 7 7 5 1 20 1 16 31 Attach 67 | . 1 3 6 1 2 1 4 4 . 32 2 5 6 Detach 25 | . . 1 . 3 1 1 1 2 . 9 . 7 . Swap 104 | . 2 14 6 10 1 7 16 25 11 7 . 1 4 Drop 101 | . 1 8 3 21 4 8 13 17 8 4 . 5 9 Fire 338 | 5 7 47 33 15 2 12 42 36 31 86 . 22 . Melee 63 | . . . . . . 1 3 . 5 29 . . 25 Ram 7 | . . . . . . . . . . . . 3 4 Kick 12 | . . . 3 . . . 1 3 1 4 . . . Crush . | . . . . . . . . . . . . . . Escape Stasis . | . . . . . . . . . . . . . . Rewire 36 | . . . . . . . . . 36 . . . . Trap 1 | . . . . . . . 1 . . . . . . Miscellaneous . | . . . . . . . . . . . . . . Route ------- -11/Scrapyard -10/Materials -9/Materials -8/Materials -7/Factory -7/Waste -7/Factory -7/Storage -6/Factory -6/Extension (discovered 2 exits: *Fac / Cet) -5/Factory -5/Waste -5/Factory -4/Factory History --------- Turn | Location | Event 9 | -11/Scrapyard | Discovered new exit (range 16) 97 | -11/Scrapyard | Entered Materials 264 | -10/Materials | Discovered new exit (range 16) 310 | -10/Materials | Entered another Materials area 310 | -9/Materials | Evolved 2 slots: Propulsion x1, Utility x1 344 | -9/Materials | Build established: Mutant 671 | -9/Materials | Lost 3 parts (3n) 845 | -9/Materials | Repaired Imp. Aluminum Leg 922 | -9/Materials | Build established: Scavenger-Mutant 975 | -9/Materials | Discovered new exit (range 8) 1125 | -9/Materials | Entered another Materials area 1125 | -8/Materials | Evolved 2 slots: Utility x1, Weapon x1 1423 | -8/Materials | Build established: Scavenger-Skirmisher 1502 | -8/Materials | Lost 3 parts (1p1n1u) 1955 | -8/Materials | Build established: Scavenger-Gunner 1960 | -8/Materials | Discovered new exit (range 16) 2141 | -8/Materials | Entered Factory 2141 | -7/Factory | Evolved 2 slots: Power x1, Utility x1 2858 | -7/Factory | Fabricated Gatling Laser? 3324 | -7/Factory | Sucked down chute 3324 | -7/Factory | Entered Waste 3328 | -7/Waste | Spotted C-40 Crusher 3355 | -7/Waste | Spotted C-40 Crusher 3371 | -7/Waste | Crushed by Compactor (1 part destroyed, 1 dropped) 3377 | -7/Waste | Spotted C-40 Crusher 3400 | -7/Waste | Spotted C-40 Crusher 3418 | -7/Waste | Spotted C-40 Crusher 3436 | -7/Waste | Spotted C-40 Crusher 3438 | -7/Waste | Crushed by Compactor (1 part destroyed, 2 dropped) 3439 | -7/Waste | Crushed by Compactor (1 part destroyed, 1 dropped) 3441 | -7/Waste | Crushed by Compactor (1 part destroyed, 2 dropped) 3442 | -7/Waste | Crushed by Compactor (1 part destroyed, 2 dropped) 3445 | -7/Waste | Crushed by Compactor (1 part destroyed) 3476 | -7/Waste | Lost 6 parts (2n2u2w) 3516 | -7/Waste | Warlord forces began an assault 3523 | -7/Waste | Discovered new exit (range 16) 3529 | -7/Waste | Allies destroyed C-40 Crusher 3535 | -7/Waste | Allies destroyed C-40 Crusher 3543 | -7/Waste | Allies destroyed C-40 Crusher 3545 | -7/Waste | Allies destroyed C-40 Crusher 3571 | -7/Waste | Lost 5 allies 3695 | -7/Waste | Entered Factory 3695 | -7/Factory | Accompanied by 4 allies 3823 | -7/Factory | Discovered new exit (range 15) 3949 | -7/Factory | Lost 3 allies 3975 | -7/Factory | Entered Storage 3975 | -7/Storage | Accompanied by 1 ally 4008 | -7/Storage | Build established: Mutant 4624 | -7/Storage | Assisted by bots powering up and referring to "LRC-V3" 4658 | -7/Storage | P-60 Hacker assimilated allied Trooper 4h 4966 | -7/Storage | Lost 5 allies 4997 | -7/Storage | Core integrity fell below 50% 5021 | -7/Storage | Lost 3 allies 5096 | -7/Storage | Discovered new exit (range 16) 5267 | -7/Storage | Entered Factory 5267 | -6/Factory | Evolved 2 slots: Propulsion x1, Utility x1 5456 | -6/Factory | Build established: Tank 6121 | -6/Factory | Build established: Gunner 6220 | -6/Factory | Noticed a derelict Sapper rigging charges 7105 | -6/Factory | Discovered new exit (range 5) 7117 | -6/Factory | Entered Extension 7257 | -6/Extension | Spotted B-75 Beast 7322 | -6/Extension | Build established: Scavenger-Gunner 7597 | -6/Extension | Rescued a captive Derelict 7795 | -6/Extension | Identified exit to Cetus 7841 | -6/Extension | Rescued A7 7881 | -6/Extension | Spotted B-75 Beast 7890 | -6/Extension | Allies destroyed B-75 Beast 7914 | -6/Extension | Destroyed B-75 Beast 7930 | -6/Extension | Lost 3 allies 7972 | -6/Extension | Discovered new exit (range 5) 7978 | -6/Extension | Entered Factory 7978 | -5/Factory | Accompanied by 6 allies (A7) 7978 | -5/Factory | Evolved 2 slots: Propulsion x1, Utility x1 8165 | -5/Factory | Fabricated Adv. Concussive RPG? 8200 | -5/Factory | Build established: Scavenger-Skirmisher 8510 | -5/Factory | Murdered 3 allies 8819 | -5/Factory | Garrison activated, responded to threat 8822 | -5/Factory | Lost 3 parts (1n1u1w) 8986 | -5/Factory | Lost 3 parts (1p1n1u) 9172 | -5/Factory | Garrison activated, responded to threat 9233 | -5/Factory | Lost 9 parts (1p4n1u3w) 9370 | -5/Factory | Lost 8 parts (1p3n1u3w) 9509 | -5/Factory | Build established: Scavenger-Mutant 9662 | -5/Factory | Crushed by falling debris 9662 | -5/Factory | System corruption reached 10% 9693 | -5/Factory | Lost 7 parts (1p4n1u1w) 10205 | -5/Factory | Sucked down chute 10205 | -5/Factory | Entered Waste 10215 | -5/Waste | Spotted C-40 Crusher 10220 | -5/Waste | EMP discharged 10223 | -5/Waste | Spotted C-40 Crusher 10226 | -5/Waste | Spotted C-40 Crusher 10229 | -5/Waste | Crushed by Compactor (1 part destroyed, 2 dropped) 10241 | -5/Waste | Crushed by Compactor (1 part destroyed, 2 dropped) 10241 | -5/Waste | Released all parts (8) 10254 | -5/Waste | Spotted C-40 Crusher 10255 | -5/Waste | Spotted C-40 Crusher 10268 | -5/Waste | Spotted C-40 Crusher 10272 | -5/Waste | Lost 3 parts (2n1u) 10282 | -5/Waste | Discovered new exit (range 13) 10307 | -5/Waste | Entered Factory 10545 | -5/Factory | Build established: Mutant 10680 | -5/Factory | Discovered new exit (range 4) 10945 | -5/Factory | Entered another Factory area 10945 | -4/Factory | Evolved 2 slots: Utility x2 11120 | -4/Factory | Lost 3 parts (3n) 11205 | -4/Factory | Released all parts (8) 11229 | -4/Factory | Lost 8 parts (2p1n4u1w) 11263 | -4/Factory | Core integrity fell below 50% 11264 | -4/Factory | Spotted B-86 Titan 11296 | -4/Factory | Core integrity fell below 20% 11645 | -4/Factory | Lost 4 parts (1p2n1w) 11822 | -4/Factory | Lost 3 allies 11883 | -4/Factory | Destroyed by H-71 Marshal with Heavy Mass Driver Last Messages --------------- 11879_ K-01 Serf shuts down. 11879_ K-01 Serf destroyed. 11879_ Neutrino Reactor explodes. 11879_ Shock Trap short circuited. 11879_ Neutrino Reactor explodes. 11879_ Shock Trap short circuited. 11879_ Neutrino Reactor explodes. 11879_ Blade Saw destroyed. 11879_ K-01 Serf destroyed. 11879_ Shock Trap short circuited. 11879_ The floor emits a surge of raw power. 11879_ K-01 Serf collects debris. 11879_ Slug penetrates Neutrino Reactor. 11880_ Acquired 5 matter. 11881_ H-77 Assassin IFF system glitched. 11882_ K-01 Serf collects debris. 11882_ Slug penetrates Neutrino Reactor. 11883_ Imp. Heat Sink destroyed. [Achievement: Just Browsing] Map ----- +----------------------------------------------------+ | #???????????????????????????????????????????????? | | ##??????????????????????????????????????????????? | | #??????????????????????????????????????????????? | | #??????????????????????????????????????????????? | | #??????????????????????????????????????????????? | | #??????????????????????????????????????????????? | | #??????????????????????????????????????????????? | | #??????????????????????????????????????????????? | | #??????????????????????????????????????????????? | | #??????????????????????????????????????????????? | | #???????????????????????? ?????????????????????? | | #???????????????????????? ????????????????????? | | #?????????????#########? ???????????????????? | | #?????????? ?# ?? ????????????????????? | | #??????????? ?# ? ????????????????????? | | #??????????? # ?? ? ???????????????? | | #???????????? # ? ????????????????? | | ??????????????+ """ """ """ """ ?????????????? | | ??????????????# """ """ """ "Y" #????????????? | | ?????############ h"""h""" """ " " #????????????? | | #?#??? ## #????????????? | | #?# ??""" ## %" #????????????? | | ### """" # ^%%" ####?????????? | | ## """" # ^ % ????????? | | ## """" # = ????????? | | ## # % =@ ????????? | | ##""" / % ????????? | | ##"F" # = ????????? | | ##" % # % ?????????? | | ##""" # ?????????? | | ##""" # k ## ##??????????? | | ## # ########??? #???????????? | | ##########""+##Y #???????????????????????? | | ########### % #???????????????????????? | | # #???????????????????????? | | # #???????????????????????? | | k #???????????????????????? | | ##+######## = #???????????????????????? | | #?# !%##########???????????????????????? | | ### #????????????????????????????????? | | !! ## #????????????????????????????????? | | !!### #????????????????????????????????? | | "" "" #?# #????????????????????????????????? | | ""F"" !#?# #????????????????????????????????? | | """ #?# #????????????????????????????????? | | ^ #? ????????????????????????????????? | | #####+### ???????????????????????????????? | | ???????????????????????????????? | | ???????????????????????????????? | | ????????????????????????????????? | +----------------------------------------------------+ Best States ------------- Heat Dissipation 61 Coolant Potential 65 Energy Generation 34 Energy Capacity 680 Matter Stores 390 Matter Capacity 500 Sight Range 22 Robot Scan Range 16 Terrain Scan Range 16 Terrain Scan Density 185 ECM Strength 2 Jamming Range 12 Additional Mass Support 9 Armor Coverage 450 Resistance: KI 40 Resistance: TH 20 Resistance: EX 70 Resistance: EM 45 Resistance: I 20 Resistance: S 20 Resistance: P 20 Propulsion Shielding 33 Evasion (%) 65 Targeting Accuracy 8 Target Analysis 9 Core Analysis 6 Recoil Reduction 3 Kinecelleration 30 Salvage Targeting 3 Offensive Hacking 22 Item Schematics ----------------- None Robot Schematics ------------------ None Fabricated ------------ Gatling Laser | x2 | -7/Factory | Preloaded Adv. Concussive RPG | x3 | -5/Factory | Preloaded Repaired ---------- Imp. Aluminum Leg | 30% | -9/Materials Studied --------- Cesium-ion Thruster | -7/Factory | Hacked Myomer Leg | -5/Factory | Hacked Alien Tech Used ----------------- None Achievements -------------- Below GoHome() Just Browsing Not Today, Chutes Unlikely Earthworm Challenges ------------ None Game ------ Seed SystemBeamMultirail Manual? 0 Play Time 03:17:03 Cumulative 33.9 hours Start 2025.11.11 @ 23:12:29 End 2025.11.13 @ 16:42:26 Sessions 7 Manual Loads 0 Difficulty Adventurer Special Mode None Game No. 15 Rogue 3 Adventurer 12 Explorer 0 Win Type - Total 0 Types 0/0/0/0/0/0/0/0/0/0 Lore% 11 Gallery% 26 Achievement% 17 Wizard Run 0 Options --------- Layout 1 ASCII 0 Keyboard 0 Movement Arrows Keybinds 0 Fullscreen 2 Font 36/Smallcaps Map View 50x35 Zoom Use 0% Tactical HUD 1 Map Filters NONE Filters NONE Steam 1 RUN: 1952365b-e00e-403b-9e7d-28ce992647bc